Date,Expense Type,Expense Area,Supplier,Transaction Number,Amount �
31/12/2010,Professional Fees,Corporate,2Plan,82543,755.06
08/12/2010,Professional Fees,Professional Standards,Bankside Law,81938,"11,126.14"
08/12/2010,Professional Fees,Professional Standards,Bankside Law,81939,"2,886.98"
08/12/2010,Professional Fees,Professional Standards,Bankside Law,81940,"1,397.66"
24/12/2010,Professional Fees,Professional Standards,Bankside Law,81941,985.24
24/12/2010,Professional Fees,Professional Standards,Bankside Law,82350,824.85
24/12/2010,Professional Fees,Professional Standards,Bankside Law,82352,"1,466.40"
07/12/2010,Professional Fees,Professional Standards,Bevan Brittan,81892,"1,628.55"
07/12/2010,Professional Fees,Professional Standards,Bevan Brittan,81893,"2,829.40"
07/12/2010,Professional Fees,Professional Standards,Bevan Brittan,81894,"1,611.16"
07/12/2010,Professional Fees,Professional Standards,Bevan Brittan,81896,"3,915.10"
24/12/2010,Professional Fees,Professional Standards,Bevan Brittan,82354,"1,431.15"
24/12/2010,Professional Fees,Professional Standards,Bevan Brittan,82355,871.85
24/12/2010,Professional Fees,Professional Standards,Bevan Brittan,82356,"2,039.80"
24/12/2010,Professional Fees,Professional Standards,Bevan Brittan,82357,"1,200.85"
24/12/2010,Professional Fees,Professional Standards,Bevan Brittan,82359,"1,332.45"
07/12/2010,Facilities,Overheads,Bighand,81898,661.47
07/12/2010,Facilities,Overheads,Bliss Cleaners,81897,"1,624.48"
31/12/2010,Facilities,Overheads,Bliss Cleaners,82544,"1,270.37"
07/12/2010,Public & Prof Awareness,Corporate,Centaur Communications,81900,"1,029.30"
24/12/2010,Professional Fees,Professional Standards,Chris Calcroft,82312,"3,100.82"
07/12/2010,IT,Overheads,Databarracks,81903,"1,506.35"
31/12/2010,IT,Overheads,Databarracks,81903,"1,506.35"
07/12/2010,IT,Overheads,Drakefell,81906,"4,230.00"
24/12/2010,IT,Overheads,Drakefell,82314,"3,666.00"
31/12/2010,IT,Overheads,Drakefell,82550,"1,739.00"
07/12/2010,Facilities,Overheads,Eurostat,81908,"3,294.45"
07/12/2010,IT,Registration,Geeks,81910,"4,112.50"
08/12/2010,IT,Registration,Geeks,81946,"10,575.00"
31/12/2010,Facilities,Overheads,Group 4 Total Security,82552,998.75
07/12/2010,Professional Fees,Professional Standards,Hutchinson Design Associates,81916,"1,313.34"
09/12/2010,Professional Fees,Professional Standards,Jonathan Goodwin,81969,"1,667.33"
31/12/2010,Professional Fees,Professional Standards,Jonathan Goodwin,82555,"4,530.21"
31/12/2010,Professional Fees,Professional Standards,Jonathan Goodwin,82556,"4,700.00"
17/12/2010,Professional Fees,Professional Standards,Kingsley Napley,82247,"5,495.47"
24/12/2010,Professional Fees,Corporate,Judicum,82317,"1,034.00"
14/12/2010,IT,Registration,N2 Visual,82071,763.75
24/12/2010,IT,Registration,N2 Visual,82321,"14,799.99"
24/12/2010,IT,Registration,N2 Visual,82322,"20,000.00"
24/12/2010,IT,Registration,N2 Visual,82323,"15,000.00"
24/12/2010,IT,Registration,N2 Visual,82324,"1,762.50"
07/12/2010,Facilities,Overheads,Npower,81920,"1,027.73"
31/12/2010,Facilities,Overheads,Npower,82557,"1,160.39"
24/12/2010,Printing,Corporate,NT & A,82324,"1,280.75"
07/12/2010,IT,Overheads,Premier,81922,505.19
24/12/2010,IT,Overheads,Premier,82325,"8,988.75"
24/12/2010,Postage,Registration,Royal Mail,82326,"8,745.24"
07/12/2010,Legal Fees,Corporate,Russell Cooke,81924,"1,410.00"
14/12/2010,Legal Fees,Corporate,Russell Cooke,82072,"2,582.06"
14/12/2010,Legal Fees,Corporate,Russell Cooke,82073,903.57
14/12/2010,Legal Fees,Corporate,Russell Cooke,82075,"1,902.32"
07/12/2010,Printing,Professional Standards,Rustin Clark,81928,"1,020.00"
14/12/2010,Printing,Professional Standards,Rustin Clark,82076,"1,020.00"
24/12/2010,Printing,Registration,Rustin Clark,82327,"28,606.55"
15/12/2010,Professional Fees,Professional Standards,Ubiqus,82152,"4,230.00"
31/12/2010,Professional Fees,Professional Standards,Ubiqus,82564,"4,200.00"
15/12/2010,Professional Fees,Professional Standards,Wright Son & Pepper,82156,998.75
01/12/2010,Facilities,Overheads,Westminster Council,81885,"7,676.00"
29/12/2010,Facilities,Overheads,Elvaston Investments,82408,"21,250.00"
17/12/2010,Staff,Corporate,Fredericks,82917,937.53
